fUST/lending_fUST_20250526
["ID","MTS","AMOUNT","RATE_DAILY","PERIOD"]
[362365708,1748219445278,-430.0,0.0002,2]
[362365709,1748219445288,-1228.41,0.0002,2]
[362365710,1748219445298,-430.0,0.0002,2]
[362365711,1748219445309,-430.0,0.0002,2]
[362365712,1748219445319,-430.0,0.0002,2]
[362365713,1748219445329,-500.0,0.0002,2]
[362365714,1748219445339,-430.0,0.0002,2]
[362365715,1748219445348,-430.0,0.0002,2]
[362365716,1748219445358,-430.0,0.0002,2]
[362365717,1748219445369,-430.0,0.0002,2]
[362365718,1748219445379,-430.0,0.0002,2]
[362365719,1748219445389,-430.0,0.0002,2]
[362365720,1748219445399,-430.0,0.0002,2]
[362365721,1748219445409,-430.0,0.0002,2]
[362365722,1748219445419,-430.0,0.0002,2]
[362365723,1748219445429,-430.0,0.0002,2]
[362365724,1748219445440,-547.59,0.0002,2]
[362365725,1748219445451,-430.0,0.0002,2]
[362365726,1748219445460,-470.0,0.0002,2]
[362365727,1748219445471,-430.0,0.0002,2]
[362365729,1748219445480,-430.0,0.0002,2]
[362365730,1748219445490,-430.0,0.0002,2]
[362365731,1748219445500,-430.0,0.0002,2]
[362365732,1748219445509,-200.39141335,0.0002,2]
[362365733,1748219445519,-430.0,0.0002,2]
[362365734,1748219445530,-430.0,0.0002,2]
[362365735,1748219445539,-430.0,0.0002,2]
[362365736,1748219445550,-505.92554818,0.0002,2]
[362365737,1748219445561,-430.0,0.0002,2]
[362365738,1748219445571,-430.0,0.0002,2]
[362365739,1748219445581,-430.0,0.0002,2]
[362365740,1748219445591,-448.84,0.0002,2]
[362365741,1748219445601,-430.0,0.0002,2]
[362365742,1748219445611,-430.0,0.0002,2]
[362365743,1748219445621,-430.0,0.0002,2]
[362365744,1748219445631,-430.0,0.0002,2]
[362365745,1748219445641,-430.0,0.0002,2]
[362365746,1748219445652,-451.88,0.0002,2]
[362365747,1748219445662,-430.0,0.0002,2]
[362365748,1748219445672,-1739.16,0.0002,2]
[362365749,1748219445681,-430.0,0.0002,2]
[362365750,1748219445691,-419.72,0.0002,2]
[362365751,1748219445701,-430.0,0.0002,2]
[362365752,1748219445713,-483.45,0.0002,2]
[362365753,1748219445723,-617.93,0.0002,2]
[362365754,1748219445732,-430.0,0.0002,2]
[362365755,1748219445742,-430.0,0.0002,2]
[362365756,1748219445752,-430.0,0.0002,2]
[362365757,1748219445762,-430.0,0.0002,2]
[362365758,1748219445772,-430.0,0.0002,2]
[362365759,1748219445782,-430.0,0.0002,2]
[362365760,1748219445791,-430.0,0.0002,2]
[362365761,1748219445801,-430.0,0.0002,2]
[362365762,1748219445811,-430.0,0.0002,2]
[362365763,1748219445821,-430.0,0.0002,2]
[362365766,1748219445832,-633.22,0.0002,2]
[362365767,1748219445842,-430.0,0.0002,2]
[362365768,1748219445853,-430.0,0.0002,2]
[362365769,1748219445863,-430.0,0.0002,2]
[362365770,1748219445874,-1486.31,0.0002,2]
[362365771,1748219445886,-430.0,0.0002,2]
[362365772,1748219445896,-430.0,0.0002,2]
[362365773,1748219445906,-430.0,0.0002,2]
[362365774,1748219445916,-430.0,0.0002,2]
[362365775,1748219445926,-430.0,0.0002,2]
[362365776,1748219445937,-1919.55,0.0002,2]
[362365777,1748219445948,-480.13,0.0002,2]
[362365779,1748219445958,-430.0,0.0002,2]
[362365780,1748219445967,-430.0,0.0002,2]
[362365781,1748219445978,-492.44,0.0002,2]
[362365782,1748219445992,-430.0,0.0002,2]
[362365783,1748219446002,-430.0,0.0002,2]
[362365784,1748219446012,-430.0,0.0002,2]
[362365785,1748219446024,-430.0,0.0002,2]
[362365786,1748219446034,-4000.0,0.0002,4]
[362365787,1748219446044,-430.0,0.0002,2]
[362365788,1748219446055,-644.74,0.0002,2]
[362365790,1748219446064,-430.0,0.0002,2]
[362365792,1748219446075,-440.0,0.0002,2]
[362365794,1748219446085,-430.0,0.0002,2]
[362365796,1748219446096,-1172.25,0.0002,2]
[362365798,1748219446107,-704.55,0.0002,2]
[362365800,1748219446117,-430.0,0.0002,2]
[362365802,1748219446128,-430.0,0.0002,2]
[362365803,1748219446138,-205.45,0.00020034,2]
[362365804,1748219446150,-500.0,0.00020064,2]
[362365805,1748219446161,-547.97740084,0.00020072,2]
[362365806,1748219446170,-500.0,0.00020124,2]
[362365807,1748219446181,-1000.0,0.00020148,2]
[362365808,1748219446192,-268.07032,0.00020187,2]
[362365809,1748219446202,-547.97740084,0.00020245,2]
[362365810,1748219446212,-151.0,0.00020273,2]
[362365811,1748219446222,-430.0,0.00020273,2]
[362365812,1748219446231,-430.0,0.00020273,2]
[362365813,1748219446242,-430.0,0.00020273,2]
[362365814,1748219446252,-430.0,0.00020273,2]
[362365815,1748219446262,-430.0,0.00020273,2]
[362365816,1748219446272,-158.55,0.00020273,2]
[362365817,1748219446282,-430.0,0.00020273,2]
[362365818,1748219446292,-430.0,0.00020273,2]
[362365819,1748219446303,-430.0,0.00020273,2]
[362365820,1748219446314,-430.0,0.00020273,2]
[362365821,1748219446324,-430.0,0.00020273,2]
[362365822,1748219446333,-430.0,0.00020273,2]
[362365823,1748219446344,-430.0,0.00020273,2]
[362365824,1748219446354,-430.0,0.00020273,2]
[362365825,1748219446364,-430.0,0.00020273,2]
[362365826,1748219446374,-430.0,0.00020273,2]
[362365827,1748219446384,-430.0,0.00020273,2]
[362365828,1748219446394,-450.0,0.00020273,2]
[362365829,1748219446403,-323.65588239,0.00020273,2]
[362365830,1748219446413,-291.32272123,0.00020273,2]
[362365831,1748219446424,-430.0,0.00020273,2]
[362365832,1748219446433,-1251.817742,0.00020273,2]
[362365833,1748219446443,-1251.817742,0.00020273,2]
[362365834,1748219446452,-472.1,0.00020273,2]
[362365835,1748219446462,-430.0,0.00020273,2]
[362365836,1748219446471,-430.0,0.00020273,2]
[362365837,1748219446481,-430.0,0.00020273,2]
[362365838,1748219446491,-430.0,0.00020273,2]
[362365840,1748219446500,-430.0,0.00020273,2]
[362365841,1748219446509,-222.38,0.00020273,2]
[362365842,1748219446519,-1228.41,0.00020273,2]
[362365843,1748219446529,-430.0,0.00020273,2]
[362365844,1748219446538,-430.0,0.00020273,2]
[362365845,1748219446547,-604.85,0.00020273,2]
[362365846,1748219446557,-430.0,0.00020273,2]
[362365847,1748219446567,-430.0,0.00020273,2]
[362365848,1748219446576,-430.0,0.00020273,2]
[362365849,1748219446585,-430.0,0.00020273,2]
[362365850,1748219446594,-430.0,0.00020273,2]
[362365851,1748219446604,-430.0,0.00020273,2]
[362365852,1748219446613,-443.7,0.00020273,2]
[362365853,1748219446623,-430.0,0.00020273,2]
[362365854,1748219446745,-547.59,0.00020273,2]
[362365855,1748219446755,-430.0,0.00020273,2]
[362365856,1748219446765,-430.0,0.00020273,2]
[362365857,1748219446774,-430.0,0.00020273,2]
[362365858,1748219446784,-430.0,0.00020273,2]
[362365859,1748219446793,-430.0,0.00020273,2]
[362365860,1748219446803,-430.0,0.00020273,2]
[362365861,1748219446813,-430.0,0.00020273,2]
[362365862,1748219446823,-430.0,0.00020273,2]
[362365863,1748219446833,-430.0,0.00020273,2]
[362365864,1748219446843,-430.0,0.00020273,2]
[362365865,1748219446852,-430.0,0.00020273,2]
[362365866,1748219446862,-430.0,0.00020273,2]
[362365867,1748219446872,-259.71,0.00020273,2]
[362365868,1748219446883,-544.95269149,0.00020273,2]
[362365869,1748219446893,-451.88,0.00020273,2]
[362365870,1748219446904,-535.63,0.00020273,2]
[362365871,1748219446914,-430.0,0.00020273,2]
[362365872,1748219446923,-1739.16,0.00020273,2]
[362365873,1748219446933,-483.45,0.00020273,2]
[362365874,1748219446942,-617.93,0.00020273,2]
[362365875,1748219446954,-430.0,0.00020273,2]
[362365876,1748219446963,-430.0,0.00020273,2]
[362365877,1748219446973,-430.0,0.00020273,2]
[362365878,1748219446984,-430.0,0.00020273,2]
[362365879,1748219446995,-430.0,0.00020273,2]
[362365880,1748219447004,-430.0,0.00020273,2]
[362365881,1748219447013,-430.0,0.00020273,2]
[362365882,1748219447022,-430.0,0.00020273,2]
[362365883,1748219447032,-633.22,0.00020273,2]
[362365884,1748219447041,-430.0,0.00020273,2]
[362365885,1748219447051,-430.0,0.00020273,2]
[362365886,1748219447061,-1486.31,0.00020273,2]
[362365887,1748219447072,-430.0,0.00020273,2]
[362365888,1748219447082,-430.0,0.00020273,2]
[362365889,1748219447091,-430.0,0.00020273,2]
[362365890,1748219447100,-1919.55,0.00020273,2]
[362365891,1748219447110,-430.0,0.00020273,2]
[362365892,1748219447119,-430.0,0.00020273,2]
[362365893,1748219447129,-484.91701237,0.00020273,2]
[362365894,1748219447271,-7.52298763,0.00020273,2]
[362365895,1748219447281,-430.0,0.00020273,2]
[362365896,1748219447290,-17.17364279,0.00020273,2]
[362365897,1748219447536,-430.0,0.00019178,2]
[362365898,1748219447546,-368.52629353,0.00019178,2]
[362365899,1748219447670,-16499.2653934,0.00019178,2]
[362365900,1748219447838,-430.0,0.00019178,2]
[362365901,1748219447848,-272.06664328,0.00019178,2]
[362365902,1748219447859,-26661.84139716,0.00019178,2]
[362365903,1748219447870,-6198.30027263,0.00019178,2]
[362365904,1748219447879,-430.0,0.00019452,2]
[362365905,1748219447889,-412.82635721,0.00020273,2]
[362365906,1748219447900,-1648.386841,0.00020273,2]
[362365907,1748219447910,-430.0,0.00020273,2]
[362365908,1748219447919,-1648.386841,0.00020273,2]
[362365909,1748219447928,-430.0,0.00020273,2]
[362365910,1748219447938,-644.74,0.00020273,2]
[362365911,1748219447947,-430.0,0.00020273,2]
[362365912,1748219447957,-430.0,0.00020273,2]
[362365913,1748219447966,-1172.25,0.00020273,2]
[362365914,1748219447976,-704.55,0.00020273,2]
[362365915,1748219447990,-430.0,0.00020273,2]
[362365916,1748219448000,-430.0,0.00020273,2]
[362365917,1748219448010,-547.97740084,0.00020417,3]
[362365918,1748219448020,-430.0,0.00020547,2]
[362365919,1748219448029,-430.0,0.00020547,2]
[362365920,1748219448038,-430.0,0.00020547,2]
[362365921,1748219448048,-430.0,0.00020547,2]
[362365922,1748219448057,-165.9,0.00020547,2]
[362365923,1748219448067,-430.0,0.00020547,2]
[362365924,1748219448077,-430.0,0.00020547,2]
[362365925,1748219448087,-430.0,0.00020547,2]
[362365926,1748219448097,-430.0,0.00020547,2]
[362365927,1748219448107,-430.0,0.00020547,2]
[362365928,1748219448117,-430.0,0.00020547,2]
[362365929,1748219448126,-430.0,0.00020547,2]
[362365930,1748219448136,-430.0,0.00020547,2]
[362365931,1748219448146,-430.0,0.00020547,2]
[362365932,1748219448155,-430.0,0.00020547,2]
[362365933,1748219448166,-430.0,0.00020547,2]
[362365934,1748219448175,-430.0,0.00020547,2]
[362365935,1748219448185,-430.0,0.00020547,2]
[362365936,1748219448194,-430.0,0.00020547,2]
[362365937,1748219448204,-430.0,0.00020547,2]
[362365938,1748219448214,-430.0,0.00020547,2]
[362365939,1748219448224,-547.59,0.00020547,2]
[362365940,1748219448233,-430.0,0.00020547,2]
[362365941,1748219448243,-430.0,0.00020547,2]
[362365942,1748219448253,-430.0,0.00020547,2]
[362365943,1748219448262,-430.0,0.00020547,2]
[362365944,1748219448272,-430.0,0.00020547,2]
[362365945,1748219448282,-430.0,0.00020547,2]
[362365946,1748219448291,-430.0,0.00020547,2]
[362365947,1748219448301,-430.0,0.00020547,2]
[362365948,1748219448310,-430.0,0.00020547,2]
[362365949,1748219448321,-451.88,0.00020547,2]
[362365950,1748219448330,-378.0,0.00020547,2]
[362365951,1748219448340,-1739.16,0.00020547,2]
[362365952,1748219448349,-483.45,0.00020547,2]
[362365953,1748219448358,-617.93,0.00020547,2]
[362365954,1748219448368,-430.0,0.00020547,2]
[362365955,1748219448377,-391.64304039,0.00020547,2]
[362365956,1748219448387,-430.0,0.00020547,2]
[362365957,1748219448396,-430.0,0.00020547,2]
[362365958,1748219448406,-430.0,0.00020547,2]
[362365959,1748219448415,-465.92629353,0.00020547,2]
[362365960,1748219448425,-430.0,0.00020547,2]
[362365961,1748219448435,-430.0,0.00020547,2]
[362365962,1748219448444,-633.22,0.00020547,2]
[362365963,1748219448454,-430.0,0.00020547,2]
[362365964,1748219448463,-430.0,0.00020547,2]
[362365965,1748219448474,-1486.31,0.00020547,2]
[362365966,1748219448483,-430.0,0.00020547,2]
[362365967,1748219448493,-430.0,0.00020547,2]
[362365968,1748219448503,-1919.55,0.00020547,2]
[362365969,1748219448512,-430.0,0.00020547,2]
[362365970,1748219448521,-430.0,0.00020547,2]
[362365971,1748219448530,-492.44,0.00020547,2]
[362365972,1748219448539,-430.0,0.00020547,2]
[362365973,1748219448548,-163.77,0.00020547,2]
[362365974,1748219448558,-430.0,0.00020547,2]
[362365975,1748219448567,-430.0,0.00020547,2]
[362365976,1748219448576,-644.74,0.00020547,2]
[362365977,1748219448586,-1172.25,0.00020547,2]
[362365978,1748219448596,-430.0,0.00020547,2]
[362365979,1748219448607,-704.55,0.00020547,2]
[362365980,1748219448617,-430.0,0.00020547,2]
[362365981,1748219448627,-430.0,0.00020547,2]
[362365982,1748219448636,-547.97740084,0.0002059,3]
[362365983,1748219448646,-21492.35590844,0.0002061,2]
[362365984,1748219448655,-547.97740084,0.00020762,3]
[362365985,1748219448668,-430.0,0.00020821,2]
[362365986,1748219448677,-430.0,0.00020821,2]
[362365987,1748219448687,-179.52,0.00020821,2]
[362365988,1748219448696,-430.0,0.00020821,2]
[362365989,1748219448707,-430.0,0.00020821,2]
[362365990,1748219448716,-430.0,0.00020821,2]
[362365991,1748219448726,-430.0,0.00020821,2]
[362365992,1748219448735,-430.0,0.00020821,2]
[362365993,1748219448745,-533.89,0.00020821,2]
[362365994,1748219448754,-430.0,0.00020821,2]
[362365995,1748219448764,-430.0,0.00020821,2]
[362365996,1748219448774,-430.0,0.00020821,2]
[362365997,1748219448783,-430.0,0.00020821,2]
[362365998,1748219448792,-430.0,0.00020821,2]
[362365999,1748219448802,-430.0,0.00020821,2]
[362366000,1748219448811,-430.0,0.00020821,2]
[362366001,1748219448821,-430.0,0.00020821,2]
[362366002,1748219448830,-430.0,0.00020821,2]
[362366003,1748219448840,-547.59,0.00020821,2]
[362366004,1748219448851,-430.0,0.00020821,2]
[362366005,1748219448863,-430.0,0.00020821,2]
[362366006,1748219448872,-378.08,0.00020821,2]
[362366007,1748219448882,-430.0,0.00020821,2]
[362366008,1748219448892,-430.0,0.00020821,2]
[362366009,1748219448903,-430.0,0.00020821,2]
[362366010,1748219448913,-430.0,0.00020821,2]
[362366011,1748219448922,-430.0,0.00020821,2]
[362366012,1748219448932,-430.0,0.00020821,2]
[362366013,1748219448941,-451.88,0.00020821,2]
[362366014,1748219448951,-1739.16,0.00020821,2]
[362366015,1748219448960,-483.45,0.00020821,2]
[362366016,1748219448971,-617.93,0.00020821,2]
[362366017,1748219448988,-430.0,0.00020821,2]
[362366018,1748219448998,-430.0,0.00020821,2]
[362366019,1748219449007,-430.0,0.00020821,2]
[362366020,1748219449017,-430.0,0.00020821,2]
[362366021,1748219449028,-430.0,0.00020821,2]
[362366022,1748219449037,-633.22,0.00020821,2]
[362366023,1748219449047,-369.14,0.00020821,2]
[362366024,1748219449058,-1486.31,0.00020821,2]
[362366025,1748219449068,-430.0,0.00020821,2]
[362366026,1748219449077,-430.0,0.00020821,2]
[362366027,1748219449087,-1919.55,0.00020821,2]
[362366028,1748219449097,-430.0,0.00020821,2]
[362366029,1748219449107,-430.0,0.00020821,2]
[362366030,1748219449117,-492.44,0.00020821,2]
[362366031,1748219449127,-430.0,0.00020821,2]
[362366032,1748219449137,-430.0,0.00020821,2]
[362366033,1748219449147,-351.34323056,0.00020821,2]
[362366034,1748219449156,-644.74,0.00020821,2]
[362366035,1748219449166,-1172.25,0.00020821,2]
[362366036,1748219449176,-430.0,0.00020821,2]
[362366037,1748219449187,-704.55,0.00020821,2]
[362366038,1748219449363,-430.0,0.00020821,2]
[362366039,1748219449376,-430.0,0.00020821,2]
[362366040,1748219449387,-547.97740084,0.00020934,4]
[362366041,1748219449397,-1495.990904,0.00021,2]
[362366042,1748219449408,-200.23303338,0.00021,2]
[362366043,1748219449418,-430.0,0.00021095,2]
[362366044,1748219449428,-430.0,0.00021095,2]
[362366045,1748219449438,-430.0,0.00021095,2]
[362366046,1748219449448,-430.0,0.00021095,2]
[362366047,1748219449458,-430.0,0.00021095,2]
[362366048,1748219449468,-430.0,0.00021095,2]
[362366049,1748219449477,-430.0,0.00021095,2]
[362366050,1748219449487,-1251.817742,0.00021095,2]
[362366051,1748219449497,-1251.817742,0.00021095,2]
[362366052,1748219449508,-430.0,0.00021095,2]
[362366053,1748219449518,-430.0,0.00021095,2]
[362366054,1748219449528,-430.0,0.00021095,2]
[362366055,1748219449538,-430.0,0.00021095,2]
[362366056,1748219449548,-430.0,0.00021095,2]
[362366057,1748219449557,-430.0,0.00021095,2]
[362366058,1748219449567,-430.0,0.00021095,2]
[362366059,1748219449577,-430.0,0.00021095,2]
[362366060,1748219449587,-547.59,0.00021095,2]
[362366061,1748219449596,-430.0,0.00021095,2]
[362366062,1748219449606,-430.0,0.00021095,2]
[362366063,1748219449616,-430.0,0.00021095,2]
[362366064,1748219449626,-430.0,0.00021095,2]
[362366065,1748219449637,-430.0,0.00021095,2]
[362366066,1748219449648,-430.0,0.00021095,2]
[362366067,1748219449658,-430.0,0.00021095,2]
[362366068,1748219449667,-430.0,0.00021095,2]
[362366069,1748219449679,-451.88,0.00021095,2]
[362366070,1748219449689,-1739.16,0.00021095,2]
[362366071,1748219449699,-483.45,0.00021095,2]
[362366072,1748219449709,-617.93,0.00021095,2]
[362366073,1748219449719,-430.0,0.00021095,2]
[362366074,1748219449729,-430.0,0.00021095,2]
[362366075,1748219449739,-430.0,0.00021095,2]
[362366076,1748219449748,-430.0,0.00021095,2]
[362366077,1748219449758,-514.05533528,0.00021095,2]
[362366078,1748219449768,-633.22,0.00021095,2]
[362366079,1748219449777,-1486.31,0.00021095,2]
[362366080,1748219449787,-246.07563953,0.00021095,2]
[362366081,1748219449796,-430.0,0.00021095,2]
[362366082,1748219449806,-1919.55,0.00021095,2]
[362366083,1748219449816,-430.0,0.00021095,2]
[362366084,1748219449827,-430.0,0.00021095,2]
[362366085,1748219449837,-492.44,0.00021095,2]
[362366086,1748219449848,-430.0,0.00021095,2]
[362366087,1748219449858,-1648.386841,0.00021095,2]
[362366088,1748219449868,-430.0,0.00021095,2]
[362366089,1748219449877,-1648.386841,0.00021095,2]
[362366090,1748219449888,-644.74,0.00021095,2]
[362366091,1748219449904,-430.0,0.00021095,2]
[362366092,1748219449914,-1172.25,0.00021095,2]
[362366093,1748219449926,-704.55,0.00021095,2]
[362366094,1748219449937,-430.0,0.00021095,2]
[362366095,1748219449946,-430.0,0.00021095,2]
[362366096,1748219449957,-547.97740084,0.00021107,4]
[362366097,1748219449966,-500.0,0.0002116,2]
[362366098,1748219449976,-169.856,0.00021162,2]
[362366099,1748219449989,-234.8,0.00021212,2]
[362366100,1748219449999,-547.97740084,0.00021279,5]
[362366101,1748219450008,-161.650244,0.00021369,2]
[362366102,1748219450018,-430.0,0.00021369,2]
[362366103,1748219450029,-430.0,0.00021369,2]
[362366104,1748219450038,-430.0,0.00021369,2]
[362366105,1748219450048,-430.0,0.00021369,2]
[362366106,1748219450059,-430.0,0.00021369,2]
[362366107,1748219450070,-445.28,0.00021369,2]
[362366108,1748219450080,-430.0,0.00021369,2]
[362366109,1748219450090,-430.0,0.00021369,2]
[362366110,1748219450100,-544.36,0.00021369,2]
[362366111,1748219450110,-430.0,0.00021369,2]
[362366112,1748219450120,-430.0,0.00021369,2]
[362366113,1748219450130,-430.0,0.00021369,2]
[362366114,1748219450140,-430.0,0.00021369,2]
[362366115,1748219450150,-547.59,0.00021369,2]
[362366116,1748219450160,-430.0,0.00021369,2]
[362366117,1748219450170,-430.0,0.00021369,2]
[362366118,1748219450179,-430.0,0.00021369,2]
[362366119,1748219450188,-430.0,0.00021369,2]
[362366120,1748219450199,-430.0,0.00021369,2]
[362366121,1748219450211,-430.0,0.00021369,2]
[362366122,1748219450221,-430.0,0.00021369,2]
[362366123,1748219450231,-394.4,0.00021369,2]
[362366124,1748219450240,-451.88,0.00021369,2]
[362366125,1748219450250,-1739.16,0.00021369,2]
[362366126,1748219450260,-483.45,0.00021369,2]
[362366127,1748219450271,-617.93,0.00021369,2]
[362366128,1748219450283,-430.0,0.00021369,2]
[362366129,1748219450292,-430.0,0.00021369,2]
[362366130,1748219450302,-430.0,0.00021369,2]
[362366131,1748219450312,-430.0,0.00021369,2]
[362366132,1748219450322,-633.22,0.00021369,2]
[362366133,1748219450332,-1486.31,0.00021369,2]
[362366134,1748219450342,-430.0,0.00021369,2]
[362366135,1748219450352,-1919.55,0.00021369,2]
[362366136,1748219450361,-430.0,0.00021369,2]
[362366137,1748219450370,-430.0,0.00021369,2]
[362366138,1748219450380,-492.44,0.00021369,2]
[362366139,1748219450390,-430.0,0.00021369,2]
[362366140,1748219450401,-430.0,0.00021369,2]
[362366141,1748219450410,-644.74,0.00021369,2]
[362366142,1748219450421,-430.0,0.00021369,2]
[362366143,1748219450430,-1172.25,0.00021369,2]
[362366144,1748219450440,-704.55,0.00021369,2]
[362366145,1748219450451,-220.59,0.00021369,2]
[362366146,1748219450461,-160.0,0.0002137,3]
[362366147,1748219450470,-295.05327753,0.0002137,5]
[362366148,1748219450480,-547.97740084,0.00021452,5]
[362366149,1748219450490,-503.74229724,0.00021467,2]
[362366150,1748219450499,-404.0,0.00021525,2]
[362366151,1748219450508,-152.71151188,0.00021534,2]
[362366152,1748219450518,-500.0,0.00021607,2]
[362366153,1748219450528,-500.0,0.00021614,2]
[362366154,1748219450538,-500.0,0.00021623,2]
[362366155,1748219450547,-500.0,0.00021623,2]
[362366156,1748219450557,-501.75648212,0.00021623,2]
[362366157,1748219450567,-547.97740084,0.00021624,5]
[362366158,1748219450576,-437.08756612,0.00021643,2]
[362366159,1748219450586,-440.84,0.00021643,2]
[362366160,1748219450595,-338.33,0.00021643,2]
[362366161,1748219450604,-430.0,0.00021643,2]
[362366162,1748219450614,-430.0,0.00021643,2]
[362366163,1748219450624,-430.0,0.00021643,2]
[362366164,1748219450634,-430.0,0.00021643,2]
[362366165,1748219450643,-430.0,0.00021643,2]
[362366166,1748219450653,-430.0,0.00021643,2]
[362366167,1748219450663,-430.0,0.00021643,2]
[362366168,1748219450672,-430.0,0.00021643,2]
[362366169,1748219450682,-547.59,0.00021643,2]
[362366170,1748219450691,-430.0,0.00021643,2]
[362366171,1748219450701,-430.0,0.00021643,2]
[362366172,1748219450710,-430.0,0.00021643,2]
[362366173,1748219450720,-430.0,0.00021643,2]
[362366174,1748219450730,-430.0,0.00021643,2]
[362366175,1748219450739,-430.0,0.00021643,2]
[362366176,1748219450749,-341.26,0.00021643,2]
[362366177,1748219450758,-451.88,0.00021643,2]
[362366178,1748219450768,-1739.16,0.00021643,2]
[362366179,1748219450778,-483.45,0.00021643,2]
[362366180,1748219450788,-617.93,0.00021643,2]
[362366181,1748219450797,-430.0,0.00021643,2]
[362366182,1748219450807,-430.0,0.00021643,2]
[362366183,1748219450816,-430.0,0.00021643,2]
[362366184,1748219450826,-633.22,0.00021643,2]
[362366185,1748219450836,-1486.31,0.00021643,2]
[362366186,1748219450845,-430.0,0.00021643,2]
[362366187,1748219450855,-1919.55,0.00021643,2]
[362366188,1748219450864,-430.0,0.00021643,2]
[362366189,1748219450874,-430.0,0.00021643,2]
[362366190,1748219450883,-492.44,0.00021643,2]
[362366191,1748219450892,-430.0,0.00021643,2]
[362366192,1748219450902,-430.0,0.00021643,2]
[362366193,1748219450912,-644.74,0.00021643,2]
[362366194,1748219450921,-430.0,0.00021643,2]
[362366195,1748219450931,-1172.25,0.00021643,2]
[362366196,1748219450940,-704.55,0.00021643,2]
[362366197,1748219450950,-500.0,0.00021662,2]
[362366198,1748219450959,-500.48255698,0.00021688,2]
[362366199,1748219450968,-157.3512349,0.00021688,2]
[362366200,1748219450978,-500.42360813,0.00021707,2]
[362366201,1748219450991,-600.0,0.00021707,2]
[362366202,1748219451001,-500.0,0.00021707,2]
[362366203,1748219451010,-500.0,0.00021707,2]
[362366204,1748219451019,-500.0,0.00021707,2]
[362366205,1748219451028,-326.78412022,0.00021707,2]
[362366206,1748219451038,-500.0,0.00021707,2]
[362366207,1748219451047,-500.0,0.00021707,2]
[362366208,1748219451056,-500.0,0.00021707,2]
[362366209,1748219451067,-500.0,0.00021707,2]
[362366210,1748219451076,-500.0,0.00021707,2]
[362366211,1748219451086,-500.0,0.00021707,2]
[362366212,1748219451095,-500.93830157,0.00021707,2]
[362366213,1748219451105,-500.0,0.00021707,2]
[362366214,1748219451115,-500.0,0.00021707,2]
[362366215,1748219451125,-547.97740084,0.00021797,6]
[362366216,1748219451134,-152.71151188,0.00021808,2]
[362366217,1748219451143,-154.95292979,0.00021862,2]
[362366218,1748219451152,-500.0,0.00021873,2]
[362366219,1748219451162,-500.0,0.00021873,2]